fUST/lending_fUST_20260118
["ID","MTS","AMOUNT","RATE_DAILY","PERIOD"]
[402444694,1768679444687,-500.0,0.00016438,3]
[402444696,1768679444696,-500.0,0.00016438,3]
[402444698,1768679444706,-500.0,0.00016438,3]
[402444700,1768679444715,-500.0,0.00016438,3]
[402444702,1768679444725,-500.0,0.00016438,3]
[402444704,1768679444734,-1473.49,0.00016438,3]
[402444706,1768679444743,-500.0,0.00016438,3]
[402444708,1768679444753,-1563.16,0.00016438,3]
[402444710,1768679444764,-548.89807406,0.00016438,3]
[402444712,1768679444774,-500.0,0.00016438,3]
[402444714,1768679444783,-500.0,0.00016438,3]
[402444716,1768679444793,-238.33114,0.00016438,3]
[402444718,1768679444802,-500.0,0.00016438,3]
[402444720,1768679444812,-500.0,0.00016438,3]
[402444722,1768679444821,-500.0,0.00016438,3]
[402444724,1768679444830,-3137.86,0.00016438,3]
[402444726,1768679444839,-1184.71,0.00016438,3]
[402444728,1768679444847,-242.80022406,0.00016438,3]
[402444730,1768679444856,-500.0,0.00016438,3]
[402444731,1768679444865,-500.0,0.00016438,3]
[402444733,1768679444874,-1035.74,0.00016438,3]
[402444735,1768679444883,-500.0,0.00016438,3]
[402444737,1768679444892,-500.0,0.00016438,3]
[402444739,1768679444901,-500.0,0.00016438,3]
[402444741,1768679444910,-680.48,0.00016438,3]
[402444743,1768679444919,-500.0,0.00016438,3]
[402444745,1768679444929,-500.0,0.00016438,3]
[402444747,1768679444938,-500.0,0.00016438,3]
[402444749,1768679444947,-500.0,0.00016438,3]
[402444751,1768679444957,-500.0,0.00016438,3]
[402444753,1768679444965,-1220.42,0.00016438,3]
[402444755,1768679444974,-500.0,0.00016438,3]
[402444757,1768679444983,-500.0,0.00016438,3]
[402444759,1768679444992,-500.0,0.00016438,3]
[402444761,1768679445001,-500.0,0.00016438,3]
[402444763,1768679445011,-738.3,0.00016438,3]
[402444765,1768679445022,-500.0,0.00016438,3]
[402444767,1768679445031,-500.0,0.00016438,3]
[402444769,1768679445040,-587.95,0.00016438,3]
[402444771,1768679445050,-500.0,0.00016438,3]
[402444773,1768679445060,-972.61,0.00016438,3]
[402444774,1768679445070,-293.31393947,0.00016438,3]
[402444776,1768679445079,-500.0,0.00016438,3]
[402444778,1768679445089,-500.0,0.00016438,3]
[402444780,1768679445098,-500.0,0.00016438,3]
[402444782,1768679445108,-932.18,0.00016438,3]
[402444784,1768679445119,-1068.39,0.00016438,3]
[402444786,1768679445129,-500.0,0.00016438,3]
[402444788,1768679445138,-696.43,0.00016438,3]
[402444790,1768679445147,-500.0,0.00016438,3]
[402444792,1768679445157,-823.6,0.00016438,3]
[402444794,1768679445167,-981.27,0.00016438,3]
[402444796,1768679445176,-546.26361381,0.00016438,3]
[402444798,1768679445186,-500.0,0.00016438,3]
[402444800,1768679445195,-500.0,0.00016438,3]
[402444803,1768679445206,-500.0,0.00016438,3]
[402444805,1768679445215,-500.0,0.00016438,3]
[402444806,1768679445226,-764.36,0.00016438,3]
[402444808,1768679445235,-1646.11,0.00016438,3]
[402444810,1768679445249,-1443.1,0.00016438,3]
[402444812,1768679445258,-640.0,0.00016438,3]
[402444814,1768679445268,-609.57,0.00016438,3]
[402444817,1768679445277,-500.0,0.00016438,3]
[402444818,1768679445287,-1057.92,0.00016438,3]
[402444820,1768679445296,-960.29,0.00016438,3]
[402444823,1768679445306,-500.0,0.00016438,3]
[402444824,1768679445315,-500.0,0.00016438,3]
[402444826,1768679445324,-13777.2,0.00016438,3]
[402444829,1768679445334,-1418.84,0.00016438,3]
[402444830,1768679445345,-500.0,0.00016438,3]
[402444832,1768679445354,-500.0,0.00016438,3]
[402444834,1768679445364,-500.0,0.00016438,3]
[402444836,1768679445375,-500.0,0.00016438,3]
[402444838,1768679445384,-500.0,0.00016438,3]
[402444840,1768679445393,-1057.38,0.00016438,3]
[402444842,1768679445405,-842.34,0.00016438,3]
[402444845,1768679445416,-500.0,0.00016438,3]
[402444847,1768679445425,-500.0,0.00016438,3]
[402444868,1768679445634,-500.0,0.00016438,3]
[402444870,1768679445644,-500.0,0.00016438,3]
[402444872,1768679445654,-646.41,0.00016438,3]
[402444874,1768679445663,-1032.71,0.00016438,3]
[402444876,1768679445673,-1795.66,0.00016438,3]
[402444878,1768679445682,-538.97966179,0.00016438,3]
[402444880,1768679445690,-1068.17,0.00016438,3]
[402444882,1768679445700,-633.31,0.00016438,3]
[402444884,1768679445709,-500.0,0.00016438,3]
[402444886,1768679445718,-552.62,0.00016438,3]
[402444888,1768679445727,-500.0,0.00016438,3]
[402444890,1768679445736,-500.0,0.00016438,3]
[402444892,1768679445746,-500.0,0.00016438,3]
[402444894,1768679445757,-500.0,0.00016438,3]
[402444895,1768679445767,-1307.71,0.00016438,3]
[402444897,1768679445776,-500.0,0.00016438,3]
[402444899,1768679445785,-500.0,0.00016438,3]
[402444901,1768679445794,-789.82,0.00016438,3]
[402444903,1768679445803,-1340.94,0.00016438,3]
[402444905,1768679445812,-500.0,0.00016438,3]
[402444907,1768679445822,-1311.65,0.00016438,3]
[402444909,1768679445831,-500.0,0.00016438,3]
[402444911,1768679445841,-1232.14,0.00016438,3]
[402444913,1768679445850,-765.27,0.00016438,3]
[402444915,1768679445860,-500.0,0.00016438,3]
[402444917,1768679445870,-1005.27,0.00016438,3]
[402444919,1768679445880,-500.0,0.00016438,3]
[402444921,1768679445889,-500.0,0.00016438,3]
[402444923,1768679445899,-2348.06,0.00016438,3]
[402444925,1768679445909,-517.36,0.00016438,3]
[402444927,1768679445919,-2776.89,0.00016438,3]
[402444929,1768679445928,-499.59360928,0.00016438,3]
[402444931,1768679445938,-1504.2,0.00016438,3]
[402444933,1768679445948,-500.0,0.00016438,3]
[402444935,1768679445958,-500.0,0.00016438,3]
[402444937,1768679445967,-500.0,0.00016438,3]
[402444939,1768679445977,-500.0,0.00016438,3]
[402444941,1768679445987,-500.0,0.00016438,2]
[402444943,1768679445996,-500.0,0.00016438,3]
[402444945,1768679446006,-474.79408976,0.00016438,3]
[402444947,1768679446016,-500.0,0.00016438,3]
[402444949,1768679446026,-500.0,0.00016438,3]
[402444951,1768679446036,-500.0,0.00016438,3]
[402444953,1768679446046,-500.0,0.00016438,3]
[402444955,1768679446056,-500.0,0.00016438,3]
[402444957,1768679446066,-500.0,0.00016438,3]
[402444959,1768679446076,-648.09,0.00016438,3]
[402444961,1768679446087,-500.0,0.00016438,3]
[402444963,1768679446097,-500.0,0.00016438,2]
[402444965,1768679446107,-1152.08,0.00016438,3]
[402444967,1768679446117,-500.0,0.00016438,3]
[402444969,1768679446127,-1273.97,0.00016438,3]
[402444971,1768679446136,-1266.1,0.00016438,3]
[402444973,1768679446146,-500.0,0.00016438,3]
[402444975,1768679446155,-500.0,0.00016438,3]
[402444977,1768679446166,-500.0,0.00016438,3]
[402444979,1768679446176,-500.0,0.00016438,3]
[402444981,1768679446186,-500.0,0.00016438,3]
[402444983,1768679446196,-500.0,0.00016438,2]
[402444985,1768679446206,-687.93,0.00016438,3]
[402444987,1768679446217,-500.0,0.00016438,3]
[402444990,1768679446227,-500.0,0.00016438,3]
[402444991,1768679446239,-500.0,0.00016438,3]
[402444994,1768679446251,-500.0,0.00016438,3]
[402444995,1768679446260,-500.0,0.00016438,3]
[402444997,1768679446270,-500.0,0.00016438,3]
[402445000,1768679446281,-532.35,0.00016438,3]
[402445002,1768679446292,-500.0,0.00016438,3]
[402445003,1768679446302,-500.0,0.00016438,3]
[402445006,1768679446311,-500.0,0.00016438,3]
[402445008,1768679446323,-638.39,0.00016438,3]
[402445010,1768679446333,-500.0,0.00016438,3]
[402445012,1768679446342,-500.0,0.00016438,3]
[402445014,1768679446352,-1194.29,0.00016438,3]
[402445015,1768679446362,-500.0,0.00016438,3]
[402445018,1768679446372,-500.0,0.00016438,3]
[402445020,1768679446383,-500.0,0.00016438,3]
[402445022,1768679446393,-500.0,0.00016438,3]
[402445024,1768679446402,-500.0,0.00016438,3]
[402445026,1768679446412,-281.28402588,0.00016438,3]
[402445027,1768679446422,-500.0,0.00016438,3]
[402445029,1768679446431,-500.0,0.00016438,3]
[402445031,1768679446441,-507.79,0.00016438,3]
[402445033,1768679446450,-500.0,0.00016438,3]
[402445035,1768679446459,-500.0,0.00016438,3]
[402445037,1768679446469,-500.0,0.00016438,2]
[402445039,1768679446477,-531.3200178,0.00016438,2]
[402445041,1768679446487,-500.0,0.00016438,3]
[402445043,1768679446496,-348.9788039,0.00016438,3]
[402445045,1768679446506,-500.0,0.00016438,3]
[402445047,1768679446515,-1199.46,0.00016438,3]
[402445049,1768679446524,-500.0,0.00016438,3]
[402445051,1768679446534,-500.0,0.00016438,3]
[402445053,1768679446543,-500.0,0.00016438,3]
[402445055,1768679446552,-500.0,0.00016438,3]
[402445057,1768679446562,-1113.02,0.00016438,3]
[402445059,1768679446571,-500.0,0.00016438,3]
[402445061,1768679446580,-500.0,0.00016438,3]
[402445063,1768679446591,-1332.88,0.00016438,3]
[402445065,1768679446601,-500.0,0.00016438,3]
[402445067,1768679446610,-500.0,0.00016438,3]
[402445069,1768679446620,-30000.0,0.00016444,2]
[402445071,1768679446631,-445.202766,0.00016444,2]
[402445073,1768679446642,-500.0,0.00016444,2]
[402445075,1768679446652,-151.0,0.00016444,2]
[402445077,1768679446662,-162.380719,0.00016444,2]
[402445079,1768679446672,-500.0,0.00016444,2]
[402445081,1768679446681,-168.3888056,0.00016444,2]
[402445084,1768679446691,-174.61919141,0.00016444,2]
[402445086,1768679446701,-500.0,0.00016444,2]
[402445088,1768679446712,-181.08010149,0.00016444,2]
[402445090,1768679446721,-500.0,0.00016444,2]
[402445092,1768679446731,-187.78006525,0.00016444,2]
[402445094,1768679446741,-500.0,0.00016444,2]
[402445096,1768679446751,-194.72792766,0.00016444,2]
[402445098,1768679446761,-231.36846651,0.00016444,2]
[402445100,1768679446770,-2000.0,0.00016444,2]
[402445101,1768679446780,-201.93286099,0.00016444,2]
[402445102,1768679446789,-2000.0,0.00016444,2]
[402445103,1768679446800,-300.73,0.00016444,2]
[402445104,1768679446810,-209.40437684,0.00016444,2]
[402445105,1768679446819,-2000.0,0.00016444,2]
[402445106,1768679446829,-2000.0,0.00016444,2]
[402445107,1768679446839,-217.15233878,0.00016444,2]
[402445108,1768679446848,-343.03408281,0.00016444,2]
[402445109,1768679446858,-225.18697532,0.00016444,2]
[402445110,1768679446868,-233.51889341,0.00016444,2]
[402445112,1768679446877,-242.15909246,0.00016444,2]
[402445114,1768679446887,-251.11897888,0.00016444,2]
[402445116,1768679446897,-260.4103811,0.00016444,2]
[402445118,1768679446906,-270.0455652,0.00016444,2]
[402445120,1768679446916,-280.03725112,0.00016444,2]
[402445122,1768679446925,-290.39862941,0.00016444,2]
[402445124,1768679446934,-2150.738,0.00016444,2]
[402445126,1768679446943,-301.1433787,0.00016444,2]
[402445128,1768679446952,-500.0,0.00016477,2]
[402445130,1768679446964,-500.0,0.00016524,2]
[402445132,1768679446974,-500.0,0.00016527,2]
[402445134,1768679446983,-2343.99061174,0.00016587,2]
[402445136,1768679446992,-560.36970517,0.00016587,2]
[402445138,1768679447002,-2241.47882069,0.00016587,2]
[402445140,1768679447013,-5038.2840192,0.00016587,2]
[402445142,1768679447022,-3983.25562334,0.00016587,2]
[402445144,1768679447032,-239.65136292,0.00016638,2]
[402445146,1768679447042,-500.0,0.00016712,3]
[402445148,1768679447051,-500.0,0.00016712,3]
[402445150,1768679447060,-500.0,0.00016712,3]
[402445152,1768679447069,-500.0,0.00016712,3]
[402445154,1768679447078,-500.0,0.00016712,3]
[402445156,1768679447087,-155.33823981,0.00016712,3]
[402445158,1768679447098,-500.0,0.00016712,3]
[402445160,1768679447107,-340.06096256,0.00016712,3]
[402445162,1768679447117,-500.0,0.00016712,3]
[402445164,1768679447126,-500.0,0.00016712,3]
[402445166,1768679447136,-1139.03,0.00016712,3]
[402445168,1768679447146,-344.19716838,0.00016712,3]
[402445170,1768679447156,-541.3847786,0.00016712,3]
[402445172,1768679447165,-500.0,0.00016712,3]
[402445174,1768679447175,-500.0,0.00016712,3]
[402445176,1768679447184,-500.0,0.00016712,3]
[402445178,1768679447194,-500.0,0.00016712,3]
[402445180,1768679447203,-500.0,0.00016712,3]
[402445182,1768679447212,-500.68,0.00016712,3]
[402445184,1768679447221,-500.0,0.00016712,3]
[402445186,1768679447230,-500.0,0.00016712,3]
[402445188,1768679447241,-500.0,0.00016712,3]
[402445190,1768679447252,-500.0,0.00016712,3]
[402445192,1768679447261,-500.0,0.00016712,3]
[402445194,1768679447271,-891.03,0.00016712,3]
[402445196,1768679447281,-500.0,0.00016712,3]
[402445198,1768679447290,-500.0,0.00016712,3]
[402445200,1768679447300,-435.32524061,0.00016712,3]
[402445202,1768679447309,-500.0,0.00016712,3]
[402445204,1768679447319,-500.0,0.00016712,3]
[402445206,1768679447328,-500.0,0.00016712,3]
[402445208,1768679447338,-500.0,0.00016712,3]
[402445210,1768679447347,-500.0,0.00016712,3]
[402445212,1768679447357,-500.0,0.00016712,3]
[402445214,1768679447370,-500.0,0.00016712,3]
[402445216,1768679447380,-500.0,0.00016712,3]
[402445218,1768679447389,-500.0,0.00016712,3]
[402445220,1768679447399,-500.0,0.00016712,3]
[402445222,1768679447409,-500.0,0.00016712,3]
[402445224,1768679447419,-500.0,0.00016712,3]
[402445226,1768679447428,-993.81,0.00016712,3]
[402445228,1768679447437,-500.0,0.00016712,3]
[402445230,1768679447447,-500.0,0.00016712,3]
[402445232,1768679447457,-1347.64,0.00016712,3]
[402445234,1768679447475,-500.0,0.00016712,3]
[402445236,1768679447486,-696.42,0.00016712,3]
[402445238,1768679447495,-500.0,0.00016712,3]
[402445240,1768679447505,-633.62,0.00016712,3]
[402445242,1768679447515,-500.0,0.00016712,3]
[402445245,1768679447525,-500.0,0.00016712,3]
[402445247,1768679447537,-645.22,0.00016712,3]
[402445249,1768679447546,-500.0,0.00016712,3]
[402445251,1768679447556,-500.0,0.00016712,3]
[402445253,1768679447567,-500.0,0.00016712,3]
[402445255,1768679447577,-506.33,0.00016712,3]
[402445257,1768679447587,-500.0,0.00016712,3]
[402445259,1768679447597,-500.0,0.00016712,3]
[402445261,1768679447606,-500.0,0.00016712,3]
[402445263,1768679447615,-500.0,0.00016712,3]
[402445265,1768679447624,-500.0,0.00016712,3]
[402445267,1768679447633,-500.0,0.00016712,3]
[402445269,1768679447644,-1262.56,0.00016712,3]
[402445271,1768679447653,-500.0,0.00016712,3]
[402445273,1768679447663,-500.0,0.00016712,3]
[402445275,1768679447672,-500.0,0.00016712,3]
[402445277,1768679447682,-500.0,0.00016712,3]
[402445279,1768679447692,-500.0,0.00016712,3]
[402445281,1768679447701,-1321.04,0.00016712,3]
[402445283,1768679447712,-500.0,0.00016712,3]
[402445285,1768679447722,-500.0,0.00016712,3]
[402445287,1768679447731,-500.0,0.00016712,3]
[402445289,1768679447741,-682.86,0.00016712,3]
[402445291,1768679447751,-500.0,0.00016712,3]
[402445293,1768679447761,-500.0,0.00016712,3]
[402445295,1768679447771,-637.08,0.00016712,3]
[402445297,1768679447780,-500.0,0.00016712,3]
[402445299,1768679447790,-796.7,0.00016712,3]
[402445301,1768679447799,-500.0,0.00016712,3]
[402445303,1768679447808,-500.0,0.00016712,3]
[402445305,1768679447817,-679.17,0.00016712,3]
[402445307,1768679447826,-718.32,0.00016712,3]
[402445309,1768679447836,-500.0,0.00016712,3]
[402445311,1768679447846,-500.0,0.00016712,3]
[402445314,1768679447856,-500.0,0.00016712,3]
[402445316,1768679447866,-500.0,0.00016712,3]
[402445318,1768679447876,-500.0,0.00016712,3]
[402445320,1768679447886,-872.29,0.00016712,3]
[402445322,1768679447896,-561.82,0.00016712,3]
[402445324,1768679447905,-500.0,0.00016712,3]
[402445326,1768679447915,-500.0,0.00016712,3]
[402445328,1768679447925,-500.0,0.00016712,3]
[402445330,1768679447934,-942.6,0.00016712,3]
[402445332,1768679447943,-500.0,0.00016712,3]
[402445334,1768679447952,-158.66112729,0.00016712,3]
[402445336,1768679447962,-1254.55,0.00016712,3]
[402445338,1768679447971,-590.26232333,0.00016712,3]
[402445340,1768679447981,-500.0,0.00016712,3]
[402445348,1768679448053,-500.0,0.00016712,3]
[402445350,1768679448063,-500.0,0.00016712,3]
[402445352,1768679448072,-500.0,0.00016712,3]
[402445354,1768679448081,-480.06845953,0.00016712,3]
[402445356,1768679448092,-500.0,0.00016712,3]
[402445358,1768679448102,-529.66608909,0.00016712,3]
[402445360,1768679448110,-656.32,0.00016712,3]
[402445362,1768679448120,-611.35197763,0.00016712,3]
[402445364,1768679448129,-478.36647413,0.00016712,3]
[402445366,1768679448138,-500.0,0.00016712,3]
[402445368,1768679448147,-500.0,0.00016712,3]
[402445370,1768679448156,-500.0,0.00016712,3]
[402445372,1768679448166,-500.0,0.00016712,3]
[402445374,1768679448175,-500.0,0.00016712,3]
[402445376,1768679448184,-500.0,0.00016712,3]
[402445377,1768679448194,-500.0,0.00016712,3]
[402445380,1768679448205,-500.0,0.00016712,3]
[402445382,1768679448214,-500.0,0.00016712,3]
[402445384,1768679448223,-797.42,0.00016712,3]
[402445385,1768679448232,-881.58,0.00016712,3]
[402445388,1768679448246,-1020.76,0.00016712,3]
[402445389,1768679448255,-500.0,0.00016712,3]
[402445391,1768679448265,-500.0,0.00016712,3]
[402445394,1768679448275,-500.0,0.00016712,3]
[402445396,1768679448285,-500.0,0.00016712,3]
[402445398,1768679448294,-500.0,0.00016712,3]
[402445400,1768679448304,-1057.49,0.00016712,3]
[402445402,1768679448314,-244.26437665,0.00016712,3]
[402445404,1768679448325,-500.0,0.00016712,3]
[402445406,1768679448335,-500.0,0.00016712,3]
[402445408,1768679448345,-1420.1,0.00016712,3]
[402445409,1768679448354,-500.0,0.00016712,3]
[402445411,1768679448363,-884.75,0.00016712,3]
[402445413,1768679448372,-532.65564852,0.00016712,2]
[402445415,1768679448381,-500.0,0.00016712,3]
[402445417,1768679448391,-500.0,0.00016712,3]
[402445419,1768679448401,-1000.0,0.00016712,2]
[402445421,1768679448410,-500.0,0.00016712,3]
[402445423,1768679448420,-500.0,0.00016712,3]
[402445425,1768679448429,-500.0,0.00016712,3]
[402445427,1768679448439,-847.44,0.00016712,3]
[402445429,1768679448448,-500.0,0.00016712,3]
[402445431,1768679448458,-500.0,0.00016712,3]
[402445433,1768679448468,-500.0,0.00016712,3]
[402445435,1768679448477,-500.0,0.00016712,3]
[402445437,1768679448487,-500.0,0.00016712,3]
[402445439,1768679448496,-1228.47,0.00016712,3]
[402445441,1768679448506,-500.0,0.00016712,3]
[402445443,1768679448515,-606.9,0.00016712,3]
[402445445,1768679448524,-500.0,0.00016712,3]
[402445447,1768679448533,-500.0,0.00016712,3]
[402445449,1768679448542,-500.0,0.00016712,3]
[402445451,1768679448551,-500.0,0.00016712,3]
[402445453,1768679448560,-500.0,0.00016712,3]
[402445455,1768679448569,-736.96,0.00016712,3]
[402445457,1768679448579,-439.35438374,0.00016712,3]
[402445459,1768679448588,-545.22,0.00016712,3]
[402445461,1768679448597,-500.0,0.00016712,3]
[402445463,1768679448606,-727.09,0.00016712,3]
[402445465,1768679448617,-500.0,0.00016712,3]
[402445467,1768679448627,-1634.12,0.00016712,3]
[402445469,1768679448636,-500.0,0.00016712,3]
[402445471,1768679448646,-595.35,0.00016712,3]
[402445473,1768679448655,-500.0,0.00016712,3]
[402445476,1768679448665,-500.0,0.00016712,3]
[402445478,1768679448675,-500.0,0.00016712,3]
[402445479,1768679448685,-500.0,0.00016712,3]
[402445482,1768679448696,-500.0,0.00016712,3]
[402445483,1768679448706,-500.0,0.00016712,3]
[402445486,1768679448716,-500.0,0.00016712,3]
[402445487,1768679448725,-1317.95,0.00016712,3]
[402445489,1768679448735,-718.42,0.00016712,3]
[402445491,1768679448744,-500.0,0.00016712,3]
[402445493,1768679448754,-1449.09,0.00016712,3]
[402445495,1768679448763,-155.57377074,0.00016712,3]
[402445497,1768679448772,-500.0,0.00016712,3]
[402445499,1768679448782,-759.73,0.00016712,3]
[402445501,1768679448792,-500.0,0.00016712,3]
[402445504,1768679448801,-500.0,0.00016712,3]
[402445505,1768679448810,-500.0,0.00016712,3]
[402445507,1768679448823,-500.0,0.00016712,3]
[402445509,1768679448832,-1291.04,0.00016712,3]
[402445511,1768679448842,-623.12,0.00016712,3]
[402445513,1768679448851,-631.17,0.00016712,3]
[402445515,1768679448861,-500.0,0.00016712,3]
[402445517,1768679448870,-562.34469649,0.00016712,3]
[402445519,1768679448879,-500.0,0.00016712,3]
[402445521,1768679448889,-1196.65,0.00016712,3]
[402445523,1768679448898,-500.0,0.00016712,3]
[402445525,1768679448908,-761.06,0.00016712,3]
[402445527,1768679448917,-500.0,0.00016712,3]
[402445530,1768679448927,-609.24,0.00016712,3]
[402445531,1768679448936,-500.0,0.00016712,3]
[402445533,1768679448945,-500.0,0.00016712,3]
[402445535,1768679448954,-500.0,0.00016712,3]
[402445537,1768679448963,-500.0,0.00016712,3]
[402445539,1768679448972,-901.7,0.00016712,3]
[402445541,1768679448981,-1140.39,0.00016712,3]
[402445543,1768679448990,-500.0,0.00016712,3]
[402445545,1768679449000,-500.0,0.00016712,3]
[402445547,1768679449010,-272.75784748,0.00016712,3]
[402445549,1768679449019,-500.0,0.00016712,3]
[402445551,1768679449028,-500.0,0.00016712,3]
[402445553,1768679449037,-576.16,0.00016712,3]
[402445555,1768679449047,-267.46419582,0.00016712,3]
[402445557,1768679449056,-500.0,0.00016712,3]
[402445559,1768679449065,-500.0,0.00016712,3]
[402445561,1768679449075,-511.75,0.00016712,3]
[402445563,1768679449084,-680.68,0.00016712,3]
[402445565,1768679449094,-500.0,0.00016712,3]
[402445567,1768679449103,-1548.48,0.00016712,3]
[402445569,1768679449111,-500.0,0.00016712,3]
[402445571,1768679449120,-500.0,0.00016712,3]
[402445573,1768679449129,-500.0,0.00016712,3]
[402445575,1768679449138,-734.72,0.00016712,3]
[402445577,1768679449147,-500.0,0.00016712,3]
[402445579,1768679449157,-1329.58,0.00016712,3]
[402445581,1768679449167,-500.0,0.00016712,3]
[402445583,1768679449176,-500.0,0.00016712,3]
[402445585,1768679449185,-539.06,0.00016712,3]
[402445587,1768679449194,-500.0,0.00016712,3]
[402445589,1768679449203,-500.0,0.00016712,3]
[402445591,1768679449212,-1126.25,0.00016712,3]
[402445593,1768679449222,-500.0,0.00016712,3]
[402445595,1768679449232,-500.0,0.00016712,3]
[402445597,1768679449244,-500.0,0.00016712,3]
[402445599,1768679449254,-500.0,0.00016712,3]
[402445601,1768679449263,-701.32,0.00016712,3]
[402445603,1768679449273,-500.0,0.00016712,3]
[402445605,1768679449283,-1192.97,0.00016712,3]
[402445608,1768679449292,-727.1,0.00016712,3]
[402445609,1768679449301,-500.0,0.00016712,3]
[402445612,1768679449311,-500.0,0.00016712,3]
[402445614,1768679449320,-500.0,0.00016712,3]
[402445616,1768679449329,-781.78,0.00016712,3]
[402445618,1768679449339,-592.22,0.00016712,3]
[402445620,1768679449348,-500.0,0.00016712,3]
[402445622,1768679449357,-500.0,0.00016712,3]
[402445624,1768679449366,-500.0,0.00016712,3]
[402445626,1768679449376,-500.0,0.00016712,3]
[402445628,1768679449385,-537.93,0.00016712,3]
[402445630,1768679449394,-1258.39,0.00016712,3]
[402445632,1768679449403,-571.8,0.00016712,3]
[402445634,1768679449411,-605.99,0.00016712,3]
[402445636,1768679449421,-500.0,0.00016712,3]
[402445638,1768679449430,-500.0,0.00016712,3]
[402445639,1768679449439,-500.0,0.00016712,3]
[402445641,1768679449449,-1201.55,0.00016712,3]
[402445644,1768679449459,-500.0,0.00016712,3]
[402445645,1768679449470,-500.0,0.00016712,3]
[402445647,1768679449479,-500.0,0.00016712,3]
[402445649,1768679449488,-500.0,0.00016712,3]
[402445651,1768679449497,-500.0,0.00016712,3]
[402445653,1768679449506,-500.0,0.00016712,3]
[402445655,1768679449515,-500.0,0.00016712,3]
[402445657,1768679449524,-500.0,0.00016712,3]
[402445659,1768679449533,-500.0,0.00016712,3]
[402445661,1768679449543,-873.03,0.00016712,3]
[402445663,1768679449552,-500.0,0.00016712,3]
[402445665,1768679449561,-1442.06,0.00016712,3]
[402445667,1768679449570,-500.0,0.00016712,3]
[402445669,1768679449579,-500.0,0.00016712,3]
[402445671,1768679449588,-829.64,0.00016712,3]
[402445673,1768679449598,-500.0,0.00016712,3]
[402445675,1768679449607,-1626.68,0.00016712,3]
[402445677,1768679449617,-500.0,0.00016712,3]
[402445679,1768679449627,-500.0,0.00016712,3]
[402445682,1768679449637,-500.0,0.00016712,3]
[402445684,1768679449647,-500.0,0.00016712,3]
[402445686,1768679449656,-500.0,0.00016712,3]
[402445688,1768679449665,-500.0,0.00016712,3]
[402445690,1768679449674,-500.0,0.00016712,3]
[402445692,1768679449683,-617.5,0.00016712,3]
[402445694,1768679449692,-372.96596375,0.00016712,3]
[402445696,1768679449702,-500.0,0.00016712,3]
[402445698,1768679449711,-500.0,0.00016712,3]
[402445700,1768679449721,-500.0,0.00016712,3]
[402445702,1768679449731,-500.0,0.00016712,3]
[402445704,1768679449740,-681.42,0.00016712,3]
[402445706,1768679449749,-500.0,0.00016712,3]
[402445708,1768679449758,-500.0,0.00016712,3]